Cogmind - Beta 13 *** ADVENTURER MODE // 2024.05.26 @ 16:47:45 Player: Catalyst Result: Destroyed by H-77 Assassin with Coil Gun Performance ------------- Evolutions (5) 2500 Regions Visited (22) 4400 Robots Destroyed (183) 915 Value Destroyed (5899) 5899 Prototype IDs (44) 880 Alien Tech Used (0) 0 Bonus (2397) 2397 TOTAL SCORE: 16991 Bonus ------- High Alert Combat Kills 49 Follower Combat Kills 762 Aligned with FarCom 300 Met Imprinter 300 Met Warlord at Base 500 MAIN.C Attacked Warlord 500 Friendly Fire -14 Cogmind --------- Core Integrity 0/1000 Matter 286/300 Energy 98/100 System Corruption 8% Temperature Cool (0) Movement Core (50) Location -4/Proximity Caves Parts ------- > --- POWER (2) -------- (None) > --- PROPULSION (4) --- (None) > --- UTILITY (7) ------ Advanced Signal Interpreter 0b10 Decoder Chip [Generic] Core Analyzer Weapon Shielding Improved Hacking Suite > --- WEAPON (4) ------- (None) > --- INVENTORY (5) ---- Mini Drone Bay (2/3) Vortex Rifle (35) Vortex Shotgun (50) Vortex Catalyst Activator (10) Peak State ------------ > --- POWER ------------ Backup Power III Backup Power III > --- PROPULSION ------- Advanced Medium Treads Improved Heavy Siege Treads Carbon-fiber Leg > --- UTILITY ---------- Cargo Storage Unit Improved Signal Interpreter Experimental Utility Shielding Experimental Weapon Shielding Hardened Medium Armor Plating Hardened Medium Armor Plating > --- WEAPON ----------- Heavy Battle Rifle Magnetic Acceleration Cannon > --- INVENTORY -------- Heavy Armored Exoskeleton Backup Propulsion III Backup Propulsion III Backup Propulsion III Backup Propulsion III High-capacity Storage Unit Humpback Seismic Detector Advanced Targeting Computer Backup Plating III Hardened Medium Armor Plating Hardened Medium Armor Plating Hacking Suite Improved Dynamic Insulation System Advanced System Restoration Module Beamcaster Force Rifle Heavy Beamcaster Heavy Beamcaster Heavy Beamcaster Flak Gun Battle Cannon Battle Cannon Battle Cannon Battle Cannon Force Lance [Rating: 76] Favorites ----------- Power Enhanced Nuclear Core Engine Backup Power III Power Core Enhanced Nuclear Core Propulsion Wheel Treads Improved Heavy Siege Treads Leg Titanium Leg Wheel Wheel Hover Unit Backup Propulsion III Flight Unit VTOL Module Utility Humpback Device Cryofiber Web Storage Humpback Processor Improved Signal Interpreter Hackware System Shield Protection Hardened Medium Armor Plating Weapon Precision Assault Rifle Energy Gun Backup Laser III Ballistic Gun Precision Assault Rifle Ballistic Cannon Gauss Cannon Launcher Heavy Missile Launcher Special Weapon Remote Datajack Slashing Weapon Scythe Build | -11 -10 -10 -9 -9 -9 -8 -8 -7 -7 -7 -7 -6 -6 -6 -6 -6 -6 -5 -5 -5 -5 -4 ------- Run | Yrd Mat Min Mat Min Exi Min Mat Fac Low Low Zio Pro Fac Was Fac Low Low Fac Upp Upp War Pro Slots Evolved 10 | . . . 2 . . . 2 2 . . . . 2 . . . . 2 . . . . Power 1 | . . . . . . . . . . . . . 1 . . . . . . . . . Propulsion 2 | . . . 2 . . . . . . . . . . . . . . . . . . . Utility 5 | . . . . . . . 2 2 . . . . 1 . . . . . . . . . Weapon 2 | . . . . . . . . . . . . . . . . . . 2 . . . . Parts Attached 232 | 6 4 9 21 1 . 3 22 45 . 1 7 15 10 10 11 5 5 15 5 13 17 7 Power 17 | 1 . . 4 . . 1 3 4 . . . . 1 . . . . 1 . 1 1 . Engine 12 | 1 . . 4 . . 1 3 1 . . . . 1 . . . . . . . 1 . Core 5 | . . . . . . . . 3 . . . . . . . . . 1 . 1 . . Reactor . | . . . . . . . . . . . . . . . . . . . . . . . Propulsion 76 | 2 1 1 9 . . 2 10 21 . . . 3 . 3 1 . 3 5 2 5 7 1 Treads 5 | . . . . . . . . . . . . . . 2 . . . 3 . . . . Leg 10 | . . . . . . . 2 4 . . . 1 . 1 1 . . . . . 1 . Wheel 40 | 2 1 1 8 . . 2 8 16 . . . 2 . . . . . . . . . . Hover 5 | . . . . . . . . . . . . . . . . . 3 2 . . . . Flight 16 | . . . 1 . . . . 1 . . . . . . . . . . 2 5 6 1 Utility 67 | 1 2 2 2 1 . . 5 8 . 1 4 4 9 6 3 2 1 3 1 5 2 5 Device 19 | . 1 2 1 . . . . . . . 1 2 4 . . 1 . . . 4 2 1 Storage 10 | 1 1 . 1 . . . 1 2 . . 1 . 1 2 . . . . . . . . Processor 8 | . . . . 1 . . 1 . . . . . 1 . 1 . . 1 1 1 . 1 Hackware 4 | . . . . . . . . 1 . . . . . . . . . 2 . . . 1 Protection 26 | . . . . . . . 3 5 . 1 2 2 3 4 2 1 1 . . . . 2 Artifact . | . . . . . . . . . . . . . . . . . . . . . . . Weapon 72 | 2 1 6 6 . . . 4 12 . . 3 8 . 1 7 3 1 6 2 2 7 1 Energy Gun 16 | 1 1 2 . . . . . . . . . . . . 4 . 1 . . 1 6 . Energy Cannon . | . . . . . . . . . . . . . . . . . . . . . . . Ballistic Gun 28 | 1 . 2 5 . . . 2 8 . . 1 3 . . . 1 . 2 1 1 . 1 Ballistic Cannon 6 | . . . . . . . 1 1 . . . 1 . . 1 2 . . . . . . Launcher 12 | . . 2 1 . . . 1 3 . . . 2 . . 2 . . . . . 1 . Special Weapon 4 | . . . . . . . . . . . . 1 . 1 . . . 2 . . . . Impact Weapon . | . . . . . . . . . . . . . . . . . . . . . . . Slashing Weapon 6 | . . . . . . . . . . . 2 1 . . . . . 2 1 . . . Piercing Weapon . | . . . . . . . . . . . . . . . . . . . . . . . Special Melee Weapon . | . . . . . . . . . . . . . . . . . . . . . . . Unidentified Prototypes 17 | . . 1 2 . . . . 2 . . . 1 1 . 5 . . . . . 5 . Corrupted Parts 5 | . . . . . . . . . . . 2 2 . . . . . . . . 1 . System Corruption 23 | . . . . . . . . . . . 6 12 . . . . . . . . 5 . Parts Lost 64 | . . 1 4 . . 2 12 10 . . . 4 1 3 . 2 8 3 1 3 9 1 Power 8 | . . . 1 . . . 1 1 . . . . . 1 . . 2 . . . 2 . Propulsion 35 | . . 1 1 . . 2 7 6 . . . 3 . 2 . . 4 1 . 2 5 1 Utility 12 | . . . 1 . . . 2 2 . . . . 1 . . 2 1 1 1 1 . . Weapon 9 | . . . 1 . . . 2 1 . . . 1 . . . . 1 1 . . 2 . Highest Loss Streak 9 | . . 1 1 . . 1 4 4 . . . 3 1 3 . 1 8 2 1 3 9 1 To Critical Strikes 1 | . . . . . . . . . . . . . . 1 . . . . . . . . Average Slot Usage (%) 81 | . 91 100 99 100 100 99 87 84 92 92 91 84 85 74 79 82 73 17 18 45 67 20 Engine 6 | . 14 14 11 11 11 11 8 2 . . . . 6 11 13 13 9 . . . 9 . Core 2 | . . . . . . . . 4 7 7 7 7 6 . . . . . . 3 . . Treads 1 | . . . . . . . . . . . . . . 5 13 13 9 2 . . . . Leg 1 | . . . . . . . 1 3 . . . 2 6 . . 6 3 . . . . . Wheel 20 | . 28 28 43 44 44 43 33 25 30 30 30 24 20 1 . . . . . . . . Flight 1 | . . . . . . . . . . . . . . . . . . . 1 20 22 1 Device 2 | . 6 14 11 10 . . . . . . . 1 5 . . 5 5 . . 1 6 . Storage 8 | . 14 14 11 11 11 11 9 10 7 7 14 15 10 5 6 6 5 . . . . . Processor 6 | . . . . . 11 11 9 7 7 7 7 7 8 . 3 6 5 1 . 6 11 14 Hackware 1 | . . . . . . . . 2 7 7 7 2 . . . . . 2 10 . . 1 Protection 9 | . . . . . . . 7 11 15 15 6 6 6 26 28 16 16 . . . . 1 Energy Gun 2 | . 14 9 3 . . . . . . . . . . 11 9 . . . . . 15 . Ballistic Gun 9 | . 14 18 17 22 22 22 14 10 15 15 13 7 6 . . 6 5 . 4 8 . . Ballistic Cannon 2 | . . . . . . . 3 3 . . . 3 6 . 2 6 5 . . . . . Naked Turns 80 | . . . . . . . . . . . . . . 32 . . 8 40 . . . . Heaviest Build 283 | 12 18 26 35 35 34 35 220 235 222 224 264 274 283 231 185 169 163 19 11 17 29 2 Greatest Support 105 | 26 26 32 64 54 54 54 48 58 58 58 58 58 30 105 105 105 105 90 8 16 28 7 Greatest Overweight (x) 52 | . . . . . . . 10 11 3 3 4 13 9 52 1 1 1 2 3 1 1 . Average Overweight (x) 2 | . . . . . . . 5 6 3 3 3 6 8 1 1 1 . . . . . . Largest Inventory Capacity 35 | 8 10 10 15 15 15 15 35 35 35 35 35 35 35 35 30 30 30 5 5 5 5 5 Average Capacity 26 | 7 8 10 10 15 15 15 35 34 35 35 35 35 35 26 30 30 28 5 5 5 5 5 Most Carried 35 | 6 10 10 13 13 15 15 35 35 35 35 35 35 35 35 30 30 29 5 5 5 5 5 Average Carried 24 | 5 7 9 10 13 14 14 25 33 35 35 34 33 33 17 28 29 26 4 4 4 4 4 Final Capacity 35 | 8 10 10 15 15 15 15 35 35 35 35 35 35 35 30 30 30 5 5 5 5 5 5 Final Carried 35 | 6 10 10 13 13 15 15 33 35 35 35 35 32 34 27 30 29 4 5 4 5 5 5 Class Distribution -------------------- 70% | Hauler-Mutant 15% | Mutant 4% | Scavenger-Mutant 3% | Derelict-Gunner Dominant Class ---------------- Mutant | -10/Materials Mutant | -10/Mines Mutant | -9/Materials Scavenger-Mutant | -9/Mines Mutant | -9/Exiles Scavenger-Mutant | -8/Mines Hauler-Mutant | -8/Materials Hauler-Mutant | -7/Factory Hauler-Mutant | -7/Lower Caves Hauler-Mutant | -7/Lower Caves Hauler-Mutant | -7/Zion Hauler-Mutant | -6/Proximity Caves Hauler-Mutant | -6/Factory Hauler-Mutant | -6/Waste Hauler-Mutant | -6/Factory Hauler-Mutant | -6/Lower Caves Hauler-Mutant | -6/Lower Caves Mutant | -5/Factory Hacker-Mutant | -5/Upper Caves Scavenger-Sprinter | -5/Upper Caves Derelict-Gunner | -5/Warlord Mutant | -4/Proximity Caves Resources | -11 -10 -10 -9 -9 -9 -8 -8 -7 -7 -7 -7 -6 -6 -6 -6 -6 -6 -5 -5 -5 -5 -4 ----------- Run | Yrd Mat Min Mat Min Exi Min Mat Fac Low Low Zio Pro Fac Was Fac Low Low Fac Upp Upp War Pro Matter Collected 5700 | 221 205 194 610 . . 163 724 1123 40 16 64 409 460 155 178 161 141 69 208 338 170 51 Remotely . | . . . . . . . . . . . . . . . . . . . . . . . Salvage Created 5654 | . 321 161 1301 . . 250 1041 1144 52 . . 265 356 154 119 110 151 69 100 60 . . Parts 330 | . 20 13 74 . . 9 72 70 . . . 19 17 . 5 4 8 6 8 5 . . Haulers Intercepted 10 | . 2 . 4 . . . 2 2 . . . . . . . . . . . . . . Recyclers Shooed 6 | . 1 . 1 . . . . 4 . . . . . . . . . . . . . . Parts Field Recycled . | . . . . . . . . . . . . . . . . . . . . . . . Retrieved Matter . | . . . . . . . . . . . . . . . . . . . . . . . Parts Self-Destructed 48 | . . . . . . . . . . . 2 16 . . . 3 15 . 8 3 . 1 Prevented 4 | . . . . . . . . . . . . . . . . . 1 . 3 . . . Kills | -11 -10 -10 -9 -9 -9 -8 -8 -7 -7 -7 -7 -6 -6 -6 -6 -6 -6 -5 -5 -5 -5 -4 ------- Run | Yrd Mat Min Mat Min Exi Min Mat Fac Low Low Zio Pro Fac Was Fac Low Low Fac Upp Upp War Pro Combat Hostiles Destroyed 145 | . 9 9 26 . . 6 23 27 . . . 18 10 1 2 3 4 1 4 2 . . Melee 5 | . . . . . . . . . . . . . . . . . . 1 4 . . . Guns 83 | . 9 6 22 . . 6 14 17 . . . 5 . . . 1 1 . . 2 . . Cannons 25 | . . . . . . . 6 2 . . . . 10 . 2 2 3 . . . . . AOE 31 | . . 3 4 . . . 3 8 . . . 13 . . . . . . . . . . Classes Destroyed 17 | . 3 1 4 . . . 1 2 . . . 2 1 1 . . 2 . . . . . Worker 11 | . . . 1 . . 1 5 4 . . . . . . . . . . . . . . Builder 6 | . . . 1 . . . 2 3 . . . . . . . . . . . . . . Tunneler 1 | . . . . . . . . . . . . . 1 . . . . . . . . . Hauler 10 | . 2 . 4 . . . 2 2 . . . . . . . . . . . . . . Recycler 5 | . 1 . 2 . . . . 2 . . . . . . . . . . . . . . Drone 2 | . . . . . . . . . . . . 2 . . . . . . . . . . Watcher 5 | . . . 3 . . . 2 . . . . . . . . . . . . . . . Swarmer 44 | . 9 6 9 . . . 4 . . . . 9 . . . . 1 . 4 2 . . Saboteur 1 | . . . . . . . . . . . . . . . . . 1 . . . . . Grunt 58 | . . 3 12 . . 6 12 18 . . . . 2 . 2 3 . . . . . . Brawler 2 | . . . . . . . . 2 . . . . . . . . . . . . . . Duelist 1 | . . . . . . . . . . . . . . . . . 1 . . . . . Sentry 18 | . . . 5 . . . 6 3 . . . 1 2 . . . 1 . . . . . Specialist 3 | . . . . . . . . . . . . 3 . . . . . . . . . . Hunter 4 | . . . . . . . 1 . . . . 2 . . . . . 1 . . . . Programmer 11 | . . . . . . . . 4 . . . 1 6 . . . . . . . . . Compactor 1 | . . . . . . . . . . . . . . 1 . . . . . . . . Best Kill Streak 12 | . 7 4 10 . . 4 6 12 . . . 6 2 1 2 2 4 1 3 2 . . Combat Bots Only 8 | . 5 4 8 . . 3 5 8 . . . 6 1 1 2 2 4 1 3 2 . . Max Kills in Single Turn 7 | . 1 3 3 . . 1 3 7 . . . 2 1 1 1 1 1 1 1 1 . . Gunslinging 1 | . . 1 . . . . . . . . . . . . . . . . . . . . Exploded 5 | . . 3 2 . . . 2 5 . . . 2 . . . . . . . . . . Melee 1 | . . . . . . . . . . . . . . . . . . 1 1 . . . Uniques/NPCs Destroyed . | . . . . . . . . . . . . . . . . . . . . . . . Combat | -11 -10 -10 -9 -9 -9 -8 -8 -7 -7 -7 -7 -6 -6 -6 -6 -6 -6 -5 -5 -5 -5 -4 -------- Run | Yrd Mat Min Mat Min Exi Min Mat Fac Low Low Zio Pro Fac Was Fac Low Low Fac Upp Upp War Pro Hostile Shots Fired 1263 | . 46 35 115 . . 29 118 224 . . . 103 108 10 21 95 110 68 29 31 108 13 Missed 405 | . 15 7 35 . . 5 24 78 . . . 34 41 1 11 22 30 28 4 12 53 5 Damage Taken 9759 | . 183 259 682 . . 301 1137 1400 . . . 648 486 356 112 923 1246 494 286 213 900 133 Core 2315 | . 54 89 107 . . 66 157 122 . . . 84 75 189 32 48 292 289 66 79 460 106 Absorbed by Shields . | . . . . . . . . . . . . . . . . . . . . . . . Redirected to Shielding 244 | . . . . . . . 51 . . . . . . . . 112 81 . . . . . Ignored by Resistances 2829 | . 62 79 209 . . 89 326 415 . . . 198 153 94 34 259 341 137 84 66 248 35 Regen/Repaired (Parts) 1367 | . . . . . . . . 357 . . . . . 1010 . . . . . . . . Core Remaining (%) 60 | 100 . 42 . . . 56 71 . . . . 70 . . . . 25 . . . . . Volleys Fired 395 | . 37 17 69 . . 16 69 63 7 . . 28 34 6 8 14 14 . 2 11 . . Largest 2 | . 2 2 2 . . 2 2 2 1 . . 2 2 1 2 2 2 . 1 2 . . Hottest 119 | . 60 60 73 . . 50 67 72 28 . . 76 76 . 119 86 72 . 35 58 . . Shots Fired 733 | . 71 34 133 . . 32 132 120 7 1 . 39 68 7 16 27 28 . 2 16 . . Gun 579 | . 71 31 130 . . 32 104 92 7 1 . 20 34 1 10 14 14 . 2 16 . . Cannon 111 | . . . . . . . 27 14 . . . 3 34 . 6 13 14 . . . . . Launcher 37 | . . 3 3 . . . 1 14 . . . 16 . . . . . . . . . . Special 6 | . . . . . . . . . . . . . . 6 . . . . . . . . Kinetic 609 | . 37 19 106 . . 32 131 106 7 1 . 23 68 . 6 27 28 . 2 16 . . Thermal 81 | . 34 12 24 . . . . . . . . . . 1 10 . . . . . . . Explosive 36 | . . 3 3 . . . . 14 . . . 16 . . . . . . . . . . Electromagnetic 1 | . . . . . . . 1 . . . . . . . . . . . . . . . Robot Hit Streak 24 | . 13 24 17 . . 16 16 21 9 . . 22 22 13 9 9 24 . 1 5 . . Robot Miss Streak 5 | . 2 1 4 . . 3 2 3 . . . 1 1 1 2 1 5 . 1 1 . . Penetration Max 1 | . . . . . . . . . . . . . 1 . . . . . . 1 . . Secondary Targets 5 | . 1 1 1 . . . . 2 . . . . . . . . . . . . . . Max Gunslinging Chain 1 | . 1 1 1 . . . . 1 . . . . . . . . . . . . . . Shots Hit Robots 577 | . 49 26 101 . . 28 111 92 7 . . 19 64 6 12 22 19 1 9 11 . . Core Hits 378 | . 21 16 56 . . 14 61 121 2 . . 32 20 . 4 8 10 2 5 6 . . Critical Kills 6 | . . . . . . 2 2 . . . . . . . . . . . . 2 . . Critical Parts Destroyed 2 | . . . . . . . 1 . . . . 1 . . . . . . . . . . Critical Strikes 19 | . . . . . . 2 3 2 . . . 1 5 . 1 . 1 . 2 2 . . Destroy 8 | . . . . . . 2 3 . . . . 1 . . . . . . . 2 . . Blast 9 | . . . . . . . . 2 . . . . 5 . 1 . 1 . . . . . Sever 2 | . . . . . . . . . . . . . . . . . . . 2 . . . Melee Attacks 18 | . . . . . . . . . . . 1 1 . . . . . 2 14 . . . Impact . | . . . . . . . . . . . . . . . . . . . . . . . Slashing 18 | . . . . . . . . . . . 1 1 . . . . . 2 14 . . . Piercing . | . . . . . . . . . . . . . . . . . . . . . . . Sneak Attacks . | . . . . . . . . . . . . . . . . . . . . . . . Combat Hostiles . | . . . . . . . . . . . . . . . . . . . . . . . Follow-up Attacks . | . . . . . . . . . . . . . . . . . . . . . . . Damage Inflicted 15246 | . 480 440 1828 . . 628 2698 3606 145 . . 1910 1695 15 238 534 446 67 395 117 4 . Guns 8075 | . 480 234 1507 . . 628 1683 1550 145 . . 325 718 14 174 281 211 . 8 117 . . Cannons 2321 | . . . . . . . 482 253 . . . 57 977 . 64 253 235 . . . . . Explosions 4391 | . . 206 321 . . . 533 1803 . . . 1528 . . . . . . . . . . Melee 446 | . . . . . . . . . . . . . . . . . . 59 387 . . . Ramming 13 | . . . . . . . . . . . . . . 1 . . . 8 . . 4 . Kinetic 9625 | . 202 110 1326 . . 628 2165 1803 145 . . 382 1695 . 64 534 446 . 8 117 . . Thermal 771 | . 278 124 181 . . . . . . . . . . 14 174 . . . . . . . Explosive 4315 | . . 206 321 . . . 502 1758 . . . 1528 . . . . . . . . . . Electromagnetic 76 | . . . . . . . 31 45 . . . . . . . . . . . . . . Impact . | . . . . . . . . . . . . . . . . . . . . . . . Slashing 446 | . . . . . . . . . . . . . . . . . . 59 387 . . . Piercing . | . . . . . . . . . . . . . . . . . . . . . . . Highest Corruption 13 | . . . . . . . . 3 3 3 9 13 1 1 3 3 3 . . . 8 8 Average Corruption 2 | . . . . . . . . 2 3 3 5 2 1 1 2 3 3 . . . 6 8 Corruption Purged 1 | . . . . . . . . . . . . . 1 . . . . . . . . . Corruption Blocked . | . . . . . . . . . . . . . . . . . . . . . . . Effects 103 | . . . . . . . . 30 4 8 . 5 8 10 17 8 2 . . . 2 9 Message Errors 36 | . . . . . . . . 11 1 . . 2 5 2 4 3 . . . . 1 7 Matter Fused 22 | . . . . . . . . 10 1 1 . 2 . 3 3 1 1 . . . . . Heat Flow Errors 9 | . . . . . . . . 1 . 2 . . . 1 5 . . . . . . . Energy Discharges 8 | . . . . . . . . 1 . . . 1 . 2 1 1 1 . . . . 1 Parts Rejected 1 | . . . . . . . . . . . . . . 1 . . . . . . . . Parts Fused 2 | . . . . . . . . 1 . . . . . . 1 . . . . . . . Data Loss (minor) 11 | . . . . . . . . 1 1 2 . . 2 . 2 2 . . . . 1 . Data Loss (major) 8 | . . . . . . . . 2 1 2 . . 1 . 1 . . . . . . 1 Misfires 5 | . . . . . . . . 3 . 1 . . . 1 . . . . . . . . Weapon Failures 1 | . . . . . . . . . . . . . . . . 1 . . . . . . Overload Shots . | . . . . . . . . . . . . . . . . . . . . . . . Overflow Damage 125 | . . . . . . . . 29 . . . 63 . . . 7 . . 26 . . . Projectiles 7 | . . . . . . . . . . . . . . . . 7 . . . . . . Explosions 92 | . . . . . . . . 29 . . . 63 . . . . . . . . . . Melee 26 | . . . . . . . . . . . . . . . . . . . 26 . . . Knockbacks 29 | . . . . . . . 5 2 . . . . 10 . . 6 5 . . . 1 . Impact 1 | . . . . . . . . . . . . . . . . . . . . . 1 . Kinetic 22 | . . . . . . . 3 2 . . . . 8 . . 5 4 . . . . . Secondary 6 | . . . . . . . 2 . . . . . 2 . . 1 1 . . . . . Self-Inflicted Damage 182 | . . . . . . . 62 74 . . . 41 . . . . . 4 . . 1 . Shots 5 | . . . . . . . 1 3 . . . 1 . . . . . . . . . . Rammed 6 | . . . . . . . . . . . . . . 1 . . . 2 . . 3 . Targets Rammed 6 | . . . . . . . . . . . . . . 1 . . . 2 . . 3 . Kicked . | . . . . . . . . . . . . . . . . . . . . . . . Crushed . | . . . . . . . . . . . . . . . . . . . . . . . Highest Temperature 354 | . 60 76 23 . . 72 156 145 . 232 . 78 86 142 280 354 27 . . . 23 . Average Temperature 50 | . 26 28 11 . . 31 35 37 . 98 . 24 33 16 42 237 9 . . . 17 . Received Heat Transfer 3769 | . . 147 348 . . 252 666 756 . . . 66 120 . 18 390 544 237 . . 219 6 Effects 9 | . . . . . . . . . . . . . . . . 9 . . . . . . Shutdowns 3 | . . . . . . . . . . . . . . . . 3 . . . . . . Energy Bleed 2 | . . . . . . . . . . . . . . . . 2 . . . . . . Interference 3 | . . . . . . . . . . . . . . . . 3 . . . . . . Damage (minor) 1 | . . . . . . . . . . . . . . . . 1 . . . . . . Siege Activations . | . . . . . . . . . . . . . . . . . . . . . . . Robots Corrupted . | . . . . . . . . . . . . . . . . . . . . . . . Combat Hostiles . | . . . . . . . . . . . . . . . . . . . . . . . Parts Fried . | . . . . . . . . . . . . . . . . . . . . . . . Impact Corruptions . | . . . . . . . . . . . . . . . . . . . . . . . Robots Melted . | . . . . . . . . . . . . . . . . . . . . . . . Combat Hostiles . | . . . . . . . . . . . . . . . . . . . . . . . Parts Melted . | . . . . . . . . . . . . . . . . . . . . . . . Heat Transferred 1670 | . 625 275 400 . . . . . . . . . . 37 333 . . . . . . . Parts Sabotaged . | . . . . . . . . . . . . . . . . . . . . . . . Parts Stolen . | . . . . . . . . . . . . . . . . . . . . . . . Parts Stripped . | . . . . . . . . . . . . . . . . . . . . . . . Power Chain Reactions 2 | . . . . . . . 1 1 . . . . . . . . . . . . . . Alert | -11 -10 -10 -9 -9 -9 -8 -8 -7 -7 -7 -7 -6 -6 -6 -6 -6 -6 -5 -5 -5 -5 -4 ------- Run | Yrd Mat Min Mat Min Exi Min Mat Fac Low Low Zio Pro Fac Was Fac Low Low Fac Upp Upp War Pro Peak Influence 563 | . 324 279 563 185 . 165 404 375 . . . . 331 28 381 . . 335 . . . . Initial 300 | . . 40 44 185 . . 21 44 . . . . 300 13 . . . . . . . . Average 112 | . 217 157 223 185 . 37 146 107 . . . . 82 1 180 . . 135 . . . . Maximum Alert Level 2 | . 1 1 2 . . . 2 1 . . . . 1 . 1 . . 1 . . . . Low Security (%) 77 | 100 40 72 44 100 . 100 64 81 . . . . 86 100 51 . . 69 . . . . Level 1 21 | . 59 27 40 . . . 31 18 . . . . 13 . 48 . . 30 . . . . Level 2 1 | . . . 14 . . . 3 . . . . . . . . . . . . . . . Level 3 . | . . . . . . . . . . . . . . . . . . . . . . . Level 4 . | . . . . . . . . . . . . . . . . . . . . . . . Level 5 . | . . . . . . . . . . . . . . . . . . . . . . . High Security . | . . . . . . . . . . . . . . . . . . . . . . . Max Security . | . . . . . . . . . . . . . . . . . . . . . . . Squads Dispatched 37 | . . . 4 . . . 4 12 . . . . 7 . 4 . 1 5 . . . . Investigation 7 | . . . 2 . . . . 1 . . . . . . . . . 4 . . . . Extermination 12 | . . . . . . . . 4 . . . . 6 . 1 . . 1 . . . . Reinforcement 14 | . . . 2 . . . 4 4 . . . . 1 . 3 . . . . . . . Assault 1 | . . . . . . . . . . . . . . . . . 1 . . . . . Garrison 3 | . . . . . . . . 3 . . . . . . . . . . . . . . Intercept . | . . . . . . . . . . . . . . . . . . . . . . . Searches Triggered . | . . . . . . . . . . . . . . . . . . . . . . . Construction Impeded 3 | . . . . . . . . 2 . . . . . . 1 . . . . . . . Haulers Reinforced 3 | . . . . . . . . 1 . . . . . . 2 . . . . . . . Active Scanning Responses . | . . . . . . . . . . . . . . . . . . . . . . . Cargo Convoy Interrupts . | . . . . . . . . . . . . . . . . . . . . . . . Stealth | -11 -10 -10 -9 -9 -9 -8 -8 -7 -7 -7 -7 -6 -6 -6 -6 -6 -6 -5 -5 -5 -5 -4 --------- Run | Yrd Mat Min Mat Min Exi Min Mat Fac Low Low Zio Pro Fac Was Fac Low Low Fac Upp Upp War Pro Distress Signals 14 | . 1 . 2 . . . 4 5 . . . . 1 . . . . 1 . . . . Communications Jammed . | . . . . . . . . . . . . . . . . . . . . . . . Distress Signals . | . . . . . . . . . . . . . . . . . . . . . . . Times Spotted 333 | . 17 9 40 . . 9 35 46 . . . 17 16 6 19 4 15 31 5 6 46 12 Peak Tracking Total 27 | . 6 5 6 . . 3 6 8 . . . 5 2 6 4 3 13 12 5 5 27 8 Tactical Retreats 27 | . 1 3 2 . . 3 . 1 . . . . 1 . . 1 . 10 2 1 2 . Traps | -11 -10 -10 -9 -9 -9 -8 -8 -7 -7 -7 -7 -6 -6 -6 -6 -6 -6 -5 -5 -5 -5 -4 ------- Run | Yrd Mat Min Mat Min Exi Min Mat Fac Low Low Zio Pro Fac Was Fac Low Low Fac Upp Upp War Pro Traps Triggered 9 | . . . 1 . . . . 6 . . . . 1 . 1 . . . . . . . Indirectly . | . . . . . . . . . . . . . . . . . . . . . . . Trap Hack Attempts . | . . . . . . . . . . . . . . . . . . . . . . . Triggered . | . . . . . . . . . . . . . . . . . . . . . . . Disarmed 3 | . . . 3 . . . . . . . . . . . . . . . . . . . Reprogrammed . | . . . . . . . . . . . . . . . . . . . . . . . Reused . | . . . . . . . . . . . . . . . . . . . . . . . Traps Extracted . | . . . . . . . . . . . . . . . . . . . . . . . Installed . | . . . . . . . . . . . . . . . . . . . . . . . Triggered 42 | . . . . . . . . . . . . . . . . . 1 . 4 . 37 . Machines | -11 -10 -10 -9 -9 -9 -8 -8 -7 -7 -7 -7 -6 -6 -6 -6 -6 -6 -5 -5 -5 -5 -4 ---------- Run | Yrd Mat Min Mat Min Exi Min Mat Fac Low Low Zio Pro Fac Was Fac Low Low Fac Upp Upp War Pro Machines Disabled 15 | . . . . . . . 2 12 . . . 1 . . . . . . . . . . Max in Single Turn 8 | . . . . . . . 1 8 . . . 1 . . . . . . . . . . Garrison Access 1 | . . . . . . . . . . . . . . . 1 . . . . . . . Machines Repaired . | . . . . . . . . . . . . . . . . . . . . . . . Machines Dismantled . | . . . . . . . . . . . . . . . . . . . . . . . Machines Sabotaged . | . . . . . . . . . . . . . . . . . . . . . . . Overloaded Fab Kills . | . . . . . . . . . . . . . . . . . . . . . . . Hacking | -11 -10 -10 -9 -9 -9 -8 -8 -7 -7 -7 -7 -6 -6 -6 -6 -6 -6 -5 -5 -5 -5 -4 --------- Run | Yrd Mat Min Mat Min Exi Min Mat Fac Low Low Zio Pro Fac Was Fac Low Low Fac Upp Upp War Pro Machines Accessed 42 | . 5 1 5 . 1 . 5 7 . 1 . . 5 . 2 . . 5 . 1 4 . Terminals 32 | . 5 . 5 . . . 5 6 . 1 . . 5 . 1 . . 4 . . . . Fabricators 1 | . . . . . . . . . . . . . . . . . . 1 . . . . Repair Stations 1 | . . . . . . . . 1 . . . . . . . . . . . . . . Recycling Units . | . . . . . . . . . . . . . . . . . . . . . . . Scanalyzers . | . . . . . . . . . . . . . . . . . . . . . . . Garrison Access 1 | . . . . . . . . . . . . . . . 1 . . . . . . . Total Hacks 87 | . 11 1 10 . 1 . 11 11 . 1 . . 14 . 4 . . 14 . 1 8 . Successful 35 | . 2 1 4 . 1 . 4 3 . 1 . . 4 . 1 . . 5 . 1 8 . Failed 52 | . 9 . 6 . . . 7 8 . . . . 10 . 3 . . 9 . . . . Catastrophic 15 | . 4 . 2 . . . 3 3 . . . . 2 . . . . 1 . . . . Database Lockouts . | . . . . . . . . . . . . . . . . . . . . . . . Manual 54 | . 9 . 6 . 1 . 10 7 . . 1 1 8 . 2 . . 9 . . . . Terminals 69 | . 11 . 10 . . . 11 9 . 1 . . 14 . 2 . . 11 . . . . Fabricators 3 | . . . . . . . . . . . . . . . . . . 3 . . . . Repair Stations 2 | . . . . . . . . 2 . . . . . . . . . . . . . . Recycling Units . | . . . . . . . . . . . . . . . . . . . . . . . Scanalyzers . | . . . . . . . . . . . . . . . . . . . . . . . Garrison Access 2 | . . . . . . . . . . . . . . . 2 . . . . . . . Terminal Hacks 29 | . 2 1 4 . 1 . 4 1 . 1 . . 4 . . . . 2 . 1 8 . Record 10 | . . . . . . . . 1 . 1 . . 1 . . . . . . . 7 . Prototype ID Bank 2 | . 1 . . . . . 1 . . . . . . . . . . . . . . . Open Door 3 | . . 1 . . . . . . . . . . . . . . . . . 1 1 . Open DSF 1 | . . . . . . . . . . . . . . . . . . 1 . . . . Level Access Points 1 | . . . . . . . 1 . . . . . . . . . . . . . . . Branch Access Points 4 | . 1 . 1 . . . 1 . . . . . . . . . . 1 . . . . Terminal Index 1 | . . . . . . . . . . . . . 1 . . . . . . . . . Unreport Threat 1 | . . . 1 . . . . . . . . . . . . . . . . . . . Locate Traps 2 | . . . 1 . . . . . . . . . 1 . . . . . . . . . Disarm Traps 1 | . . . 1 . . . . . . . . . . . . . . . . . . . Hauler Manifests 1 | . . . . . . . . . . . . . 1 . . . . . . . . . Zone Layout 1 | . . . . . . . 1 . . . . . . . . . . . . . . . Derelict Proto ID Bank 1 | . . . . . 1 . . . . . . . . . . . . . . . . . Fabricator Hacks 2 | . . . . . . . . . . . . . . . . . . 2 . . . . Load Schematic 1 | . . . . . . . . . . . . . . . . . . 1 . . . . Build 1 | . . . . . . . . . . . . . . . . . . 1 . . . . Repair Station Hacks 2 | . . . . . . . . 2 . . . . . . . . . . . . . . Scan Component 1 | . . . . . . . . 1 . . . . . . . . . . . . . . Repair 1 | . . . . . . . . 1 . . . . . . . . . . . . . . Recycling Unit Hacks . | . . . . . . . . . . . . . . . . . . . . . . . Scanalyzer . | . . . . . . . . . . . . . . . . . . . . . . . Garrison Access Hacks 1 | . . . . . . . . . . . . . . . 1 . . . . . . . Seal Access 1 | . . . . . . . . . . . . . . . 1 . . . . . . . Unauthorized Hacks 1 | . . . . . . . . . . . . . . . . . . 1 . . . . Terminals 1 | . . . . . . . . . . . . . . . . . . 1 . . . . Botnet 1 | . . . . . . . . . . . . . . . . . . 1 . . . . Fabricators . | . . . . . . . . . . . . . . . . . . . . . . . Repair Stations . | . . . . . . . . . . . . . . . . . . . . . . . Recycling Units . | . . . . . . . . . . . . . . . . . . . . . . . Scanalyzers . | . . . . . . . . . . . . . . . . . . . . . . . Garrison Access . | . . . . . . . . . . . . . . . . . . . . . . . Data Cores Recovered . | . . . . . . . . . . . . . . . . . . . . . . . Used . | . . . . . . . . . . . . . . . . . . . . . . . Hacking Detections 32 | . 5 . 5 . . . 4 6 . . . . 5 . 2 . . 5 . . . . Full Trace Events 6 | . . . 2 . . . . . . . . . . . . . . 4 . . . . Feedback Events . | . . . . . . . . . . . . . . . . . . . . . . . Feedback Blocked . | . . . . . . . . . . . . . . . . . . . . . . . Robot Schematics Acquired 4 | . . . . . . . . . . . 4 . . . . . . . . . . . Robots Built . | . . . . . . . . . . . . . . . . . . . . . . . Authchips . | . . . . . . . . . . . . . . . . . . . . . . . Time . | . . . . . . . . . . . . . . . . . . . . . . . Total Robot Build Rating . | . . . . . . . . . . . . . . . . . . . . . . . Part Schematics Acquired 15 | . . . . . . . . . . . 15 . . . . . . . . . . . Parts Built 2 | . . . . . . . . . . . . . . . . . . 2 . . . . Authchips . | . . . . . . . . . . . . . . . . . . . . . . . Time 42 | . . . . . . . . . . . . . . . . . . 42 . . . . Total Part Build Rating 8 | . . . . . . . . . . . . . . . . . . 8 . . . . Parts Repaired 1 | . . . . . . . . 1 . . . . . . . . . . . . . . Time 26 | . . . . . . . . 26 . . . . . . . . . . . . . . Parts Recycled . | . . . . . . . . . . . . . . . . . . . . . . . Recycled Matter . | . . . . . . . . . . . . . . . . . . . . . . . Retrieved Matter . | . . . . . . . . . . . . . . . . . . . . . . . Retrieved Components . | . . . . . . . . . . . . . . . . . . . . . . . Parts Scanalyzed . | . . . . . . . . . . . . . . . . . . . . . . . Part Schematics Acquired . | . . . . . . . . . . . . . . . . . . . . . . . Parts Damaged . | . . . . . . . . . . . . . . . . . . . . . . . Bothacking | -11 -10 -10 -9 -9 -9 -8 -8 -7 -7 -7 -7 -6 -6 -6 -6 -6 -6 -5 -5 -5 -5 -4 ------------ Run | Yrd Mat Min Mat Min Exi Min Mat Fac Low Low Zio Pro Fac Was Fac Low Low Fac Upp Upp War Pro Used RIF Installer . | . . . . . . . . . . . . . . . . . . . . . . . Robots Hacked . | . . . . . . . . . . . . . . . . . . . . . . . Non-combat . | . . . . . . . . . . . . . . . . . . . . . . . Combat . | . . . . . . . . . . . . . . . . . . . . . . . Robot Hacks Applied . | . . . . . . . . . . . . . . . . . . . . . . . Relay Couplers Released 2 | . . . . . . . . . . . . . . . 2 . . . . . . . Machine Destruction 2 | . . . . . . . . . . . . . . . 2 . . . . . . . Fabnet Peak Effective % . | . . . . . . . . . . . . . . . . . . . . . . . Robots Rewired . | . . . . . . . . . . . . . . . . . . . . . . . Allies Hacked . | . . . . . . . . . . . . . . . . . . . . . . . Hacks Repelled . | . . . . . . . . . . . . . . . . . . . . . . . Allies | -11 -10 -10 -9 -9 -9 -8 -8 -7 -7 -7 -7 -6 -6 -6 -6 -6 -6 -5 -5 -5 -5 -4 -------- Run | Yrd Mat Min Mat Min Exi Min Mat Fac Low Low Zio Pro Fac Was Fac Low Low Fac Upp Upp War Pro Total Allies 21 | . . . . 3 . . . . . . . . . 18 . . . . . . . . Largest Group 18 | . . . . 3 3 3 . . . . . . . 18 16 . . . . . . . Highest-Rated Group 638 | . . . . 40 40 40 . . . . . . . 638 560 . . . . . . . Highest-Rated Ally 50 | . . . . 16 16 16 . . . . . . . 50 50 . . . . . . . Total Orders 1 | . . . . . . . . . . . . . . . . . . . . . . 1 EXPLORE 1 | . . . . . . . . . . . . . . . . . . . . . . 1 Ally Attacks 148 | . . . . . . 15 . 12 . . . . . 56 65 . . . . . . . Total Damage 5518 | . . . . . . 179 . 601 . . . . . 2172 2566 . . . . . . . Kills 36 | . . . . . . . . 6 . . . . . 6 24 . . . . . . . Allies Corrupted 3 | . . . . . . . . . . . . . . . 3 . . . . . . . Allies Melted 3 | . . . . . . . . . . . . . . . 1 . . . . . 2 . Turrets Deployed 1 | . . . . . . . . 1 . . . . . . . . . . . . . . Intel | -11 -10 -10 -9 -9 -9 -8 -8 -7 -7 -7 -7 -6 -6 -6 -6 -6 -6 -5 -5 -5 -5 -4 ------- Run | Yrd Mat Min Mat Min Exi Min Mat Fac Low Low Zio Pro Fac Was Fac Low Low Fac Upp Upp War Pro Robot Analysis Total . | . . . . . . . . . . . . . . . . . . . . . . . Derelict Logs Recovered 8 | . . 2 . 1 . . . . . . 2 . . . . 2 . . . 1 . . Drone Launches 1 | . . . . . . . . . . . . . . . . . . . . . . 1 Drone Recoveries . | . . . . . . . . . . . . . . . . . . . . . . . Exploration | -11 -10 -10 -9 -9 -9 -8 -8 -7 -7 -7 -7 -6 -6 -6 -6 -6 -6 -5 -5 -5 -5 -4 ------------- Run | Yrd Mat Min Mat Min Exi Min Mat Fac Low Low Zio Pro Fac Was Fac Low Low Fac Upp Upp War Pro Turns Passed 20093 | 171 436 572 760 156 330 744 1636 3596 363 467 1587 853 2871 1313 1208 444 126 554 336 345 919 306 Spaces Moved 11839 | 85 331 527 503 160 324 414 683 1386 250 327 993 369 967 498 449 158 40 727 348 759 1013 528 Core 1426 | 5 . . . . . . . . . . . . . 95 . . 13 698 259 . 22 334 Treads 942 | . . . . . . . . . . . . . . 279 449 158 27 29 . . . . Legs 86 | . . . . . . . . . . . . . . 86 . . . . . . . . Wheels 7343 | 80 331 527 503 160 324 414 683 1386 250 327 993 369 967 29 . . . . . . . . Hover 9 | . . . . . . . . . . . . . . 9 . . . . . . . . Flight 2033 | . . . . . . . . . . . . . . . . . . . 89 759 991 194 Fastest Speed 26 | 50 90 90 92 92 92 87 147 90 140 140 140 155 185 50 247 247 50 50 32 26 26 40 Average Speed 127 | 87 90 92 95 92 92 91 161 176 140 140 154 188 205 245 247 247 182 54 80 29 36 46 Slowest Speed 2650 | 100 90 100 100 92 92 96 230 245 140 140 155 275 215 2650 247 247 247 160 200 115 139 50 Overloaded Moves . | . . . . . . . . . . . . . . . . . . . . . . . Propulsion Burnouts . | . . . . . . . . . . . . . . . . . . . . . . . Robots Hopped 7 | . . . . . . . . 1 . . . . . . . . . . 1 . 5 . Cave-ins Triggered . | . . . . . . . . . . . . . . . . . . . . . . . Exploration Rate (%) 53 | 6 62 97 50 36 61 77 55 41 49 59 84 63 22 97 16 37 13 25 58 72 90 66 Regions Visited 22 Branch Regions 14 Pre-discovered Areas 5 | . . 1 . . . . . . . . 3 . . . . . . . . 1 . . Known Exits Taken 16 | . 1 . 1 1 1 1 1 1 1 1 1 1 . . 1 1 . 1 1 1 . . Unknown Exits Taken 4 | 1 . 1 . . . . . . . . . . . . . . 1 . . . 1 . Scrap Searched 21 | . . 1 . . . 1 . . . 2 5 4 . . . 1 . . 1 3 . 3 Spaces Dug 12 | . . 11 . . . . . . . . . . . . . . . 1 . . . . Terrain Destroyed 298 | . . 27 23 . . . 58 65 . . . 119 3 . . 2 . 1 . . . . Melee 1 | . . . . . . . . . . . . . . . . . . 1 . . . . Projectile 8 | . . . . . . . 2 1 . . . . 3 . . 2 . . . . . . AOE 289 | . . 27 23 . . . 56 64 . . . 119 . . . . . . . . . . Terrain Rammed . | . . . . . . . . . . . . . . . . . . . . . . . Walls Destroyed . | . . . . . . . . . . . . . . . . . . . . . . . Machines Disabled . | . . . . . . . . . . . . . . . . . . . . . . . Actions | -11 -10 -10 -9 -9 -9 -8 -8 -7 -7 -7 -7 -6 -6 -6 -6 -6 -6 -5 -5 -5 -5 -4 --------- Run | Yrd Mat Min Mat Min Exi Min Mat Fac Low Low Zio Pro Fac Was Fac Low Low Fac Upp Upp War Pro Total 16144 | 178 408 581 655 168 360 746 1086 2437 256 337 1046 488 1785 580 534 183 64 879 371 857 1557 588 Wait 3317 | 82 20 20 36 8 21 313 282 832 . 7 36 60 758 38 48 7 4 112 2 71 510 50 Move 11807 | 84 330 526 502 159 323 413 682 1383 249 326 992 368 967 497 448 157 39 726 345 758 1005 528 Hop 4 | . . . . . . . . 1 . . . . . . . . . . 1 . 2 . Pick Up 174 | 6 9 4 11 . 8 . 26 62 . 1 4 5 8 16 5 . 2 7 . . . . Fast Attach 103 | 6 1 1 4 . . 2 4 11 . . 2 2 3 8 10 1 . 13 3 12 14 6 Attach 56 | . . 1 6 . . 1 11 10 . . . 9 6 1 . 1 5 2 2 . . 1 Detach 32 | . . . 1 . . 1 2 4 . . . 4 3 7 1 . . 2 1 1 4 1 Swap 73 | . 3 7 11 1 . . 7 24 . 1 5 4 1 1 1 3 . . . 1 3 . Drop 149 | . 8 5 15 . 8 . 3 39 . 2 6 7 5 5 11 . . 13 1 3 16 2 Fire 395 | . 37 17 69 . . 16 69 63 7 . . 28 34 6 8 14 14 . 2 11 . . Melee 18 | . . . . . . . . . . . 1 1 . . . . . 2 14 . . . Ram 6 | . . . . . . . . . . . . . . 1 . . . 2 . . 3 . Kick . | . . . . . . . . . . . . . . . . . . . . . . . Crush . | . . . . . . . . . . . . . . . . . . . . . . . Escape Stasis 10 | . . . . . . . . 8 . . . . . . 2 . . . . . . . Rewire . | . . . . . . . . . . . . . . . . . . . . . . . Trap . | . . . . . . . . . . . . . . . . . . . . . . . Miscellaneous . | . . . . . . . . . . . . . . . . . . . . . . . Route ------- -11/Scrapyard -10/Materials (discovered 3 exits: *Mat / *Min x2) -10/Mines (discovered 2 exits: *Mat x2) -9/Materials (discovered 2 exits: *Min x2) -9/Mines (discovered 3 exits: *Mat / *Exi / *Zio) -9/Exiles -8/Mines -8/Materials (discovered 4 exits: *Fac x3 / *Sto) -7/Factory -7/Lower Caves -7/Lower Caves -7/Zion -6/Proximity Caves -6/Factory -6/Waste -6/Factory -6/Lower Caves -6/Lower Caves -5/Factory (discovered 2 exits: *Upp x2) -5/Upper Caves -5/Upper Caves (discovered 2 exits: *Fac / *War) -5/Warlord -4/Proximity Caves History --------- Turn | Location | Event 10 | -11/Scrapyard | Discovered new exit (range 15) 172 | -11/Scrapyard | Entered Materials 260 | -10/Materials | Discovered new exit (range 11) 306 | -10/Materials | Build established: Mutant 418 | -10/Materials | Identified exit to Mines 462 | -10/Materials | Discovered new exit (range 8) 608 | -10/Materials | Entered Mines 743 | -10/Mines | Received a Rocket Launcher from a helpful Derelict 857 | -10/Mines | Core integrity fell below 50% 892 | -10/Mines | Learned Materials terminal intel 911 | -10/Mines | Found the Drone Emporium 916 | -10/Mines | Found Prototype Device 916 | -10/Mines | Identified Splice Drone Bay 993 | -10/Mines | Learned location of Storage (-8) 1041 | -10/Mines | Discovered new exit (range 15) 1130 | -10/Mines | Discovered new exit (range 16) 1180 | -10/Mines | Entered Materials 1180 | -9/Materials | Evolved 2 slots: Propulsion x2 1181 | -9/Materials | Loaded intel: 11 terminal locations 1253 | -9/Materials | Identified exit to Mines 1495 | -9/Materials | Destroyed 8 combat bots 1940 | -9/Materials | Entered Mines 1954 | -9/Mines | Assisted by bots powering up and referring to "LRC-V3" 1978 | -9/Mines | Build established: Scavenger-Mutant 1983 | -9/Mines | Discovered new exit (range 7) 2004 | -9/Mines | A Derelict revealed a hidden shortcut to a safe place 2065 | -9/Mines | Learned Materials interactive machine intel 2079 | -9/Mines | Discovered new exit (range 8) 2087 | -9/Mines | Identified exit to Exiles 2096 | -9/Mines | Entered Exiles 2096 | -9/Exiles | Accompanied by 3 allies 2122 | -9/Exiles | Met 8R-AWN 2137 | -9/Exiles | Met EX-HEX 2164 | -9/Exiles | Met EX-BIN 2175 | -9/Exiles | Aligned with FarCom system 2176 | -9/Exiles | Given EX-Vault access code 2197 | -9/Exiles | Opened EX-Vault 2206 | -9/Exiles | Found Deploy-a-Sentry 2208 | -9/Exiles | Found Deploy-a-Sentry 2210 | -9/Exiles | Found Deploy-a-Sentry 2230 | -9/Exiles | Warned to stay clear of 0b10 Research branches 2258 | -9/Exiles | Met EX-DEC 2374 | -9/Exiles | Build established: Mutant 2409 | -9/Exiles | Discovered new exit (range 15) 2420 | -9/Exiles | Identified exit to Mines 2426 | -9/Exiles | Left Exiles lab with Deploy-a-Sentry 2426 | -9/Exiles | Entered Mines 2426 | -8/Mines | Accompanied by 3 allies 2519 | -8/Mines | Lost 3 allies 2970 | -8/Mines | Build established: Scavenger-Mutant 3162 | -8/Mines | Discovered new exit (range 10) 3169 | -8/Mines | Identified exit to Materials 3170 | -8/Mines | Entered Materials 3170 | -8/Materials | Evolved 2 slots: Utility x2 3171 | -8/Materials | Loaded intel: 18 interactive machine locations 3361 | -8/Materials | Identified exit to Storage 3473 | -8/Materials | Build established: Hauler-Mutant 4478 | -8/Materials | Identified exit to Factory 4730 | -8/Materials | Lost 4 parts (1p2n1u) 4806 | -8/Materials | Entered Factory 4806 | -7/Factory | Evolved 2 slots: Utility x2 6113 | -7/Factory | Lost 4 parts (1p2n1u) 6119 | -7/Factory | Destroyed 8 combat bots 6941 | -7/Factory | Garrison activated, responded to threat 6964 | -7/Factory | DAS Turret deployed 7387 | -7/Factory | Repaired Humpback 8292 | -7/Factory | Discovered new exit (range 16) 8347 | -7/Factory | Identified exit to Lower Caves 8402 | -7/Factory | Entered Lower Caves 8465 | -7/Lower Caves | Encountered a Warlord checkpoint 8752 | -7/Lower Caves | Discovered new exit (range 8) 8762 | -7/Lower Caves | Identified exit to Lower Caves 8765 | -7/Lower Caves | Entered another Lower Caves area 9200 | -7/Lower Caves | Discovered new exit (range 16) 9219 | -7/Lower Caves | Identified exit to Zion 9232 | -7/Lower Caves | Entered Zion 9336 | -7/Zion | System corruption cleaned by Quarantine Array 9396 | -7/Zion | Learned 4 Factory zone layouts 9408 | -7/Zion | Learned Factory non-interactive machine intel 9555 | -7/Zion | Learned location of Warlord (-5) 9570 | -7/Zion | Acquired unknown access codes intercepted by a Zionite 9788 | -7/Zion | Received a visual enhancement algorithm 9985 | -7/Zion | Given A8's code to call for help 10310 | -7/Zion | Rebuked by Imprinter 10671 | -7/Zion | Found GAL Module 10683 | -7/Zion | Discovered new exit (range 9) 10695 | -7/Zion | Identified exit to Proximity Caves 10819 | -7/Zion | Entered Proximity Caves 10834 | -6/Proximity Caves | Acquired the password to a Derelict Tinkerer's latest research 10848 | -6/Proximity Caves | Found Prototype Special Weapon 10848 | -6/Proximity Caves | Identified Molecular Deconstructor 10962 | -6/Proximity Caves | Caught by Unaware searching for contraband prototypes 11012 | -6/Proximity Caves | Spotter reported a threat 11053 | -6/Proximity Caves | Spotter reported a threat 11271 | -6/Proximity Caves | Attracted the attention of an 0b10 checkpoint 11309 | -6/Proximity Caves | Lost 3 parts (2n1w) 11575 | -6/Proximity Caves | Discovered new exit (range 15) 11605 | -6/Proximity Caves | Identified exit to Factory 11610 | -6/Proximity Caves | System corruption reached 10% 11672 | -6/Proximity Caves | Entered Factory 11672 | -6/Factory | Evolved 2 slots: Power x1, Utility x1 11673 | -6/Factory | Identified exit to Lower Caves 11674 | -6/Factory | Loaded intel: 225 non-interactive machine locations 14543 | -6/Factory | Sucked down chute 14543 | -6/Factory | Entered Waste 14567 | -6/Waste | Spotted C-40 Crusher 14582 | -6/Waste | Spotted C-40 Crusher 14582 | -6/Waste | Spotted C-40 Crusher 14582 | -6/Waste | Spotted C-40 Crusher 14595 | -6/Waste | Spotted C-40 Crusher 14600 | -6/Waste | Spotted C-40 Crusher 14608 | -6/Waste | Crushed by Compactor (0 parts destroyed, 2 dropped) 14613 | -6/Waste | Crushed by Compactor (1 part destroyed, 2 dropped) 14618 | -6/Waste | Destroyed C-40 Crusher 14618 | -6/Waste | Released all parts (5) 14644 | -6/Waste | Warlord forces began an assault 14644 | -6/Waste | Lost 3 parts (1p2n) 14646 | -6/Waste | Allies destroyed C-40 Crusher 15698 | -6/Waste | Discovered new exit (range 16) 15856 | -6/Waste | Entered Factory 15856 | -6/Factory | Accompanied by 16 allies 16327 | -6/Factory | Lost 3 allies 16398 | -6/Factory | Lost 6 allies 16423 | -6/Factory | P-60 Hacker assimilated allied 61-DGX(g) 16990 | -6/Factory | Discovered exit to Lower Caves (range 15) 17064 | -6/Factory | Entered Lower Caves 17166 | -6/Lower Caves | Identified exit to Lower Caves 17243 | -6/Lower Caves | Spotted B-75 Beast 17286 | -6/Lower Caves | Encountered a Warlord checkpoint 17446 | -6/Lower Caves | Learned Factory emergency access door positions 17508 | -6/Lower Caves | Entered another Lower Caves area 17572 | -6/Lower Caves | Attracted the attention of an 0b10 outpost 17614 | -6/Lower Caves | Core integrity fell below 50% 17626 | -6/Lower Caves | Released all parts (10) 17631 | -6/Lower Caves | Discovered new exit (range 9) 17634 | -6/Lower Caves | Entered Factory 17634 | -5/Factory | Evolved 2 slots: Weapon x2 17657 | -5/Factory | Lost 8 parts (2p4n1u1w) 17788 | -5/Factory | Fabricated Greatsword (x2) 17937 | -5/Factory | Build established: Mutant 18129 | -5/Factory | Identified exit to Upper Caves 18188 | -5/Factory | Entered Upper Caves 18275 | -5/Upper Caves | Build established: Hacker-Mutant 18362 | -5/Upper Caves | Spotted B-75 Beast 18515 | -5/Upper Caves | Discovered new exit (range 10) 18520 | -5/Upper Caves | Identified exit to Upper Caves 18524 | -5/Upper Caves | Entered another Upper Caves area 18616 | -5/Upper Caves | Lost 3 parts (2n1u) 18637 | -5/Upper Caves | Attracted the attention of an 0b10 checkpoint 18680 | -5/Upper Caves | Discovered new exit (range 14) 18683 | -5/Upper Caves | Identified exit to Factory 18856 | -5/Upper Caves | Discovered new exit (range 7) 18858 | -5/Upper Caves | Identified exit to Warlord 18869 | -5/Upper Caves | Entered Warlord 18892 | -5/Warlord | Build established: Scavenger-Sprinter 18926 | -5/Warlord | Met Warlord 18951 | -5/Warlord | Warlord's base attacked by MAIN.C 19024 | -5/Warlord | Found Prototype Launcher 19024 | -5/Warlord | Identified Vortex Catalyst Activator 19028 | -5/Warlord | Found Prototype Energy Gun 19028 | -5/Warlord | Identified Vortex Rifle 19030 | -5/Warlord | Found Prototype Energy Gun 19030 | -5/Warlord | Identified Vortex Shotgun 19034 | -5/Warlord | Found Vortex Shotgun 19075 | -5/Warlord | Learned Armory garrison access intel 19075 | -5/Warlord | Learned Research recycling unit intel 19075 | -5/Warlord | Learned 4 Command zone layouts 19266 | -5/Warlord | Build established: Derelict-Gunner 19301 | -5/Warlord | Warlord forces counterattacked 19402 | -5/Warlord | Spotted Executioner 19402 | -5/Warlord | Spotted Executioner 19576 | -5/Warlord | Spotted Executioner 19625 | -5/Warlord | Lost 6 allies 19626 | -5/Warlord | Warlord base infiltrated, sounded retreat 19627 | -5/Warlord | Enhanced Grunt warped into view 19627 | -5/Warlord | Enhanced Grunt warped into view 19627 | -5/Warlord | Enhanced Grunt warped into view 19627 | -5/Warlord | Enhanced Demolisher warped into view 19627 | -5/Warlord | Enhanced Demolisher warped into view 19627 | -5/Warlord | Enhanced Demolisher warped into view 19684 | -5/Warlord | Spotted Executioner 19704 | -5/Warlord | Spotted Striker 19728 | -5/Warlord | Found Prototype Device 19728 | -5/Warlord | Identified Exp. Shock Absorption System 19732 | -5/Warlord | Lost 4 allies 19732 | -5/Warlord | Spotted Striker 19744 | -5/Warlord | Spotted Striker 19744 | -5/Warlord | Spotted Striker 19757 | -5/Warlord | Spotted Executioner 19766 | -5/Warlord | Spotted B-86 Titan 19767 | -5/Warlord | Spotted B-75 Beast 19768 | -5/Warlord | Spotted Striker 19768 | -5/Warlord | Spotted Executioner 19772 | -5/Warlord | Spotted Striker 19774 | -5/Warlord | Core integrity fell below 50% 19778 | -5/Warlord | Core integrity fell below 20% 19782 | -5/Warlord | Discovered new exit (range 14) 19783 | -5/Warlord | Lost 8 allies 19788 | -5/Warlord | Entered Proximity Caves 19805 | -4/Proximity Caves | Lost 9 parts (2p5n2w) 20018 | -4/Proximity Caves | Unaware initiated a cargo recovery operation 20080 | -4/Proximity Caves | Spotted Striker 20094 | -4/Proximity Caves | Destroyed by H-77 Assassin with Coil Gun Last Messages --------------- 20016_ Acquired Imp. Hacking Suite. 20017_ O|VSRMEPMRU2WXC#ZZ7 AQHDBLWQVZRW 20018_ ALERT: Cargo recovery in progress. Unregistered derelicts vacate Proximity Caves. 20023_ Acquired 21 matter. 20029_ LD-585(c): "Took me two whole cycles to get the general technique down." 20042_ System corrupted: Energy discharge (-29). 20080_ C-30 ARC bursts open, deploying its payload. 20080_ H-77 Assassin unfolds itself. 20080_ Striker unfolds itself. 20080_ Slug penetrates Striker. 20080_ Slug penetrates A-27 Freighter. 20080_ Impulse Thruster destroyed. 20081_ KFBEQ TQKJ9C2:LOR:SAKJMVJGZE|T3UCSIKFKB6 20082_ E-15 Imp destroyed. 20084_ Slug penetrates LD-585(c). 20085_ LD-585(c) destroyed. 20087_ Slug penetrates Wall. 20094_ Penetrated by Slug. Map ----- +----------------------------------------------------+ | #??????????????????????????????????????????????? | | #??????????????????????????????????????????????? | | #??????????????????????????????????????????????? | | ###??????????????????????????????????????????????? | | #????????????????????????????????????????????????? | | #?????####???????????????????????????????????????? | | #?????# " ???????????????????????????????????????? | | #?????#"%#???????????????????????????????????????? | | ####??# "#???????????????????????????????????????? | | #??# ######??????????????????????????????????? | | #??# ? #??????????????????????????????????? | | # #?## #??# #??????????????????????????????????? | | # ### #??# #?##???????????????????????????????? | | ## #??# ## ##??????????????????????????????? | | % "#### #??????????????????????????????? | | %* #??????#???????????????????????? | | %## ##????? ???????????????????????? | | #### ##????? #???????????????????????? | | #??# ###?????? #???????????????????????? | | ## # #??# #???????? #???????????????????????? | | ?# # #??# #???????? #???????????????????????? | | ## # #?## ######??? #????? #????????????????? | | # ### #### #???? ##???????????????? | | ### # K #???? #???????????????? | | ### # #### #???????????????? | | ###### @ #???????????????? | | #????## ##???????????????? | | ######?????# % ## ##????????????????? | | #??###????#### #?# #?????????????????? | | #?## #???? #### #?? h##?????????????????? | | ??# #???? ####### #??? #??????????????????? | | ### #???? #????## #????#??????????????????? | | #???? #?????# ##???????????????????????? | | #???? #?????## ##????????????????????????? | | ##??? #??????####?????????????????????????? | | #### #????????????????????????????????????? | | ## #????????????????????????????????????? | | ##???????????????????????????????????? | | #### #???????????????????????????????????? | | ???# #???????????????????????????????????? | | ???## #???????????????????????????????????? | | ????# ##???????????????????????????????????? | | ????# #????????????????????????????????????? | | ????## #????????????????????????????????????? | | ????# ##????????????????????????????????????? | | ???## ##????????????????????????????????????? | | ###?# ####?????????????????????????????????? | | ## ##????????????????????????????????? | | #????????????????????????????????? | | ### #????????????????????????????????? | +----------------------------------------------------+ Best States ------------- Heat Dissipation 56 Energy Generation 26 Energy Capacity 480 Matter Stores 429 Matter Capacity 500 Sight Range 22 Terrain Scan Density 10 Additional Mass Support 12 Base Temperature (-) 100 Armor Coverage 980 Resistance: KI 20 Resistance: TH 20 Resistance: EX 95 Resistance: EM 20 Resistance: I 20 Resistance: S 20 Resistance: P 20 Propulsion Shielding 33 Utility Shielding 90 Weapon Shielding 90 Evasion (%) 76 Core Analysis 6 Recoil Reduction 3 Offensive Hacking 22 Defensive Hacking 12 Item Schematics ----------------- Hvy. Laser | -7/Zion | Archive Matter Compressor | -7/Zion | Archive Gatling Laser | -7/Zion | Archive Gauss Cannon | -7/Zion | Archive System Restoration Module | -7/Zion | Archive Adv. Sensor Array | -7/Zion | Archive Imp. System Restoration Module | -7/Zion | Archive Imp. Coolant Injector | -7/Zion | Archive Remote Shield | -7/Zion | Archive Mak. Shrapnel Gun | -7/Zion | Archive Coil Gun | -7/Zion | Archive Gauss Rifle | -7/Zion | Archive Beamcaster | -7/Zion | Archive Greatsword | -7/Zion | Archive Neutrino Core | -7/Zion | Archive Robot Schematics ------------------ L-41 Fighter | -7/Zion | Archive P-60 Hacker | -7/Zion | Archive R-06 Scavenger | -7/Zion | Archive X-82 Rainmaker | -7/Zion | Archive Fabricated ------------ Greatsword | x2 | -5/Factory Alien Tech Used ----------------- None Achievements -------------- None Challenges ------------ None Game ------ Seed GyrokineticGrenadeSheargun Manual? 0 Play Time 03:02:29 Cumulative 104.9 hours Start 2024.05.19 @ 17:46:43 End 2024.05.26 @ 16:47:45 Sessions 8 Manual Loads 0 Difficulty Adventurer Special Mode None Game No. 20 Rogue 2 Adventurer 14 Explorer 4 Win Type - Total 2 Types 2/0/0/0/0/0/0/0/0 Lore% 57 Gallery% 66 Achievement% 55 Wizard Run 0 Options --------- Layout 1 ASCII 0 Keyboard 1 Movement Vi Keybinds 0 Fullscreen 2 Font 48/Smallcaps Map View 55x38 Zoom Use 0% Tactical HUD 1 Map Filters NONE Filters NONE Steam 1 RUN: 6bba7547-b37d-4aca-82c1-35c6fafc321b